[Event "CZE-ch Youth G10-G12-G14 2022"]
[Site "Luhacovice"]
[Date "2022.03.14"]
[Round "4.10"]
[White "Zadrapova Gabriela"]
[Black "Vlckova Linda"]
[Result "1-0"]
[ECO "C50"]
[WhiteElo "1000"]
[BlackElo "1000"]
[Annotator "NA"]
[PlyCount "57"]
[EventDate "2022.03.12"]
[EventType "swiss"]
[EventCountry "CZE"]
[SourceTitle "playchess.com"]
[Source "ChessBase"]
[SourceQuality "1"]
[TimeControl "40/5400+30:1800+30"]

1. e4 {[%emt 0:00:06]} e5 {[%emt 0:00:08]} 2. Nf3 {[%emt 0:00:29]} Nc6 {[%emt 0:00:51]} 3. Nc3 {[%emt 0:00:29]} Nf6 {[%emt 0:00:59]} 4. Bc4 {[%emt 0:00:27]} Bc5 {[%emt 0:00:36]} 5. O-O {[%emt 0:00:33]} O-O {[%emt 0:00:44]} 6. d3 {[%emt 0:00:27]} d6 {[%emt 0:00:12]} 7. Bg5 {[%emt 0:00:59]} Bg4 {[%emt 0:01:42]} 8. h3 {[%emt 0:00:53]} Bd7 {[%emt 0:00:22]} 9. Nd5 {[%emt 0:01:17]} Bd4 {[%emt 0:00:49]} 10. Nxf6+ {[%emt 0:00:47]} Kh8 {[%emt 0:00:11]} 11. Nxd7 {[%emt 0:01:49]} Qxd7 {[%emt 0:00:28]} 12. Nxd4 {[%emt 0:00:28]} Nxd4 {[%emt 0:00:39]} 13. Qg4 {[%emt 0:02:46]} Qxg4 {[%emt 0:00:57]} 14. hxg4 {[%emt 0:00:13]} Nxc2 {[%emt 0:00:07]} 15. Rac1 {[%emt 0:00:34]} Nb4 {[%emt 0:01:09]} 16. Rfd1 {[%emt 0:00:28]} Nxa2 {[%emt 0:00:39]} 17. Bxa2 {[%emt 0:00:32]} Rac8 {[%emt 0:01:02]} 18. Be7 {[%emt 0:00:41]} Rfe8 {[%emt 0:00:32]} 19. Bg5 {[%emt 0:00:59]} f6 {[%emt 0:01:05]} 20. Be3 {[%emt 0:00:39]} b5 {[%emt 0:00:39]} 21. Bxa7 {[%emt 0:00:21]} c6 {[%emt 0:00:12]} 22. Rc2 {[%emt 0:01:07]} Rc7 {[%emt 0:00:21]} 23. Bb6 {[%emt 0:01:49]} Rcc8 {[%emt 0:00:48]} 24. Rdc1 {[%emt 0:00:20]} Ra8 {[%emt 0:00:56]} 25. Bf7 {[%emt 0:00:35]} Re7 {[%emt 0:00:08]} 26. Rxc6 {[%emt 0:01:16]} Rxf7 {[%emt 0:00:23]} 27. Rc8+ {[%emt 0:00:43]} Rxc8 {[%emt 0:00:17]} 28. Rxc8+ {[%emt 0:00:12]} Rf8 {[%emt 0:00:16]} 29. Rxf8# {[%emt 0:00:25]} 1-0

[Event "CZE-ch Youth G10-G12-G14 2022"]
[Site "Luhacovice"]
[Date "2022.03.14"]
[Round "4.11"]
[White "Kubalova Nikol"]
[Black "Topencikova Ellen"]
[Result "0-1"]
[ECO "A46"]
[WhiteElo "1000"]
[BlackElo "1000"]
[Annotator "NA"]
[PlyCount "114"]
[EventDate "2022.03.12"]
[EventType "swiss"]
[EventCountry "CZE"]
[SourceTitle "playchess.com"]
[Source "ChessBase"]
[SourceQuality "1"]
[TimeControl "40/5400+30:1800+30"]

1. d4 {[%emt 0:00:03]} c6 {[%emt 0:00:16]} 2. Bf4 {[%emt 0:00:20]} Nf6 {[%emt 0:01:01]} 3. Nf3 {[%emt 0:00:19]} d6 {[%emt 0:00:56]} 4. e3 {[%emt 0:00:13]} Bf5 {[%emt 0:00:43]} 5. Bd3 {[%emt 0:00:35]} Bxd3 {[%emt 0:00:26]} 6. Qxd3 {[%emt 0:00:14]} e6 {[%emt 0:02:09]} 7. Qd1 {[%emt 0:00:16]} Nh5 {[%emt 0:01:17]} 8. Bg3 {[%emt 0:00:41]} Nxg3 {[%emt 0:00:16]} 9. fxg3 {[%emt 0:00:18]} d5 {[%emt 0:00:26]} 10. Nbd2 {[%emt 0:00:30]} Bd6 {[%emt 0:00:55]} 11. Qe2 {[%emt 0:01:13]} O-O {[%emt 0:00:20]} 12. O-O-O {[%emt 0:00:16]} h6 {[%emt 0:02:15]} 13. g4 {[%emt 0:00:46]} Bb4 {[%emt 0:01:00]} 14. g5 {[%emt 0:00:37]} hxg5 {[%emt 0:00:18]} 15. Qf2 {[%emt 0:00:40]} g4 {[%emt 0:00:16]} 16. Ng5 {[%emt 0:00:38]} Bxd2+ {[%emt 0:01:00]} 17. Rxd2 {[%emt 0:00:51]} Qxg5 {[%emt 0:00:17]} 18. h3 {[%emt 0:00:26]} g3 {[%emt 0:00:55]} 19. Qf3 {[%emt 0:00:44]} Nd7 {[%emt 0:00:31]} 20. h4 {[%emt 0:00:51]} Qg6 {[%emt 0:01:04]} 21. h5 {[%emt 0:00:23]} Qg5 {[%emt 0:00:41]} 22. Rh3 {[%emt 0:00:50]} Qh6 {[%emt 0:01:25]} 23. Rxg3 {[%emt 0:00:24]} Nf6 {[%emt 0:00:33]} 24. Rf2 {[%emt 0:01:46]} Ne4 {[%emt 0:00:12]} 25. Rf1 {[%emt 0:00:44]} Nxg3 {[%emt 0:00:21]} 26. Qxg3 {[%emt 0:00:49]} Qxh5 {[%emt 0:00:44]} 27. Rf3 {[%emt 0:02:21]} Qh1+ {[%emt 0:01:03]} 28. Kd2 {[%emt 0:00:38]} Qb1 {[%emt 0:00:40]} 29. Kc3 {[%emt 0:00:48]} Qxa2 {[%emt 0:00:34]} 30. Qg4 {[%emt 0:00:23]} Qa5+ {[%emt 0:00:33]} 31. Kd3 {[%emt 0:00:55]} Qa6+ {[%emt 0:00:27]} 32. Kd2 {[%emt 0:00:18]} g6 {[%emt 0:00:23]} 33. Rh3 {[%emt 0:00:25]} Rfd8 {[%emt 0:00:49]} 34. Qh4 {[%emt 0:00:33]} Kf8 {[%emt 0:00:14]} 35. Qh6+ {[%emt 0:01:06]} Ke8 {[%emt 0:00:33]} 36. Rf3 {[%emt 0:01:05]} Qa5+ {[%emt 0:00:27]} 37. c3 {[%emt 0:00:42]} Kd7 {[%emt 0:00:33]} 38. Qg7 {[%emt 0:01:51]} Rf8 {[%emt 0:00:04]} 39. e4 {[%emt 0:03:24]} dxe4 {[%emt 0:00:00]} 40. Re3 {[%emt 0:01:29]} Qa2 {[%emt 0:00:00]} 41. Rxe4 {[%emt 0:32:00]} Qxb2+ {[%emt 0:29:24]} 42. Kd3 {[%emt 0:00:49]} Qb1+ {[%emt 0:00:37]} 43. Kc4 {[%emt 0:00:22]} b5+ {[%emt 0:00:37]} 44. Kc5 {[%emt 0:00:41]} Qxe4 {[%emt 0:00:29]} 45. Qe5 {[%emt 0:01:20]} Qxe5+ {[%emt 0:00:28]} 46. dxe5 {[%emt 0:00:31]} f6 {[%emt 0:00:46]} 47. exf6 {[%emt 0:02:02]} Rxf6 {[%emt 0:00:30]} 48. c4 {[%emt 0:00:30]} Ke7 {[%emt 0:00:57]} 49. cxb5 {[%emt 0:00:47]} Rf5+ {[%emt 0:00:25]} 50. Kxc6 {[%emt 0:00:46]} Rc8+ {[%emt 0:00:20]} 51. Kb7 {[%emt 0:01:02]} e5 {[%emt 0:00:24]} 52. Kxc8 {[%emt 0:00:41]} e4 {[%emt 0:00:10]} 53. Kb8 {[%emt 0:00:10]} e3 {[%emt 0:01:09]} 54. Kxa7 {[%emt 0:00:10]} e2 {[%emt 0:00:27]} 55. b6 {[%emt 0:00:13]} e1=Q {[%emt 0:00:38]} 56. b7 {[%emt 0:00:24]} Qa5+ {[%emt 0:00:11]} 57. Kb8 {[%emt 0:00:49]} Rf8# {[%emt 0:00:19]} 0-1

[Event "CZE-ch Youth G10-G12-G14 2022"]
[Site "Luhacovice"]
[Date "2022.03.14"]
[Round "4.12"]
[White "Slivova, Linda"]
[Black "Buchtova, Viktorie"]
[Result "1/2-1/2"]
[ECO "D05"]
[WhiteElo "1298"]
[BlackElo "1464"]
[Annotator "NA"]
[PlyCount "42"]
[EventDate "2022.03.12"]
[EventType "swiss"]
[EventCountry "CZE"]
[SourceTitle "playchess.com"]
[Source "ChessBase"]
[SourceQuality "1"]
[TimeControl "40/5400+30:1800+30"]

1. d4 {[%emt 0:00:04]} Nf6 {[%emt 0:00:03]} 2. e3 {[%emt 0:00:11]} e6 {[%emt 0:00:07]} 3. Bd3 {[%emt 0:00:11]} b6 {[%emt 0:01:20]} 4. Nf3 {[%emt 0:01:36]} Bb7 {[%emt 0:00:14]} 5. Nbd2 {[%emt 0:00:46]} d5 {[%emt 0:00:21]} 6. Ne5 {[%emt 0:02:02]} c5 {[%emt 0:01:10]} 7. c3 {[%emt 0:00:37]} Be7 {[%emt 0:02:03]} 8. O-O {[%emt 0:00:41]} O-O {[%emt 0:00:38]} 9. f4 {[%emt 0:03:00]} Nbd7 {[%emt 0:04:33]} 10. Rf3 {[%emt 0:09:20]} Ne4 {[%emt 0:04:08]} 11. Rh3 {[%emt 0:04:22]} Ndf6 {[%emt 0:04:46]} 12. Qf3 {[%emt 0:06:21]} a6 {[%emt 0:14:28]} 13. Ng4 {[%emt 0:09:48]} b5 {[%emt 0:05:52]} 14. Nxf6+ {[%emt 0:03:54]} Bxf6 {[%emt 0:04:07]} 15. Nxe4 {[%emt 0:01:01]} dxe4 {[%emt 0:00:37]} 16. Bxe4 {[%emt 0:00:15]} Bxe4 {[%emt 0:00:38]} 17. Qxe4 {[%emt 0:00:08]} g6 {[%emt 0:01:28]} 18. b3 {[%emt 0:05:05]} Qa5 {[%emt 0:04:30]} 19. Bb2 {[%emt 0:03:09]} c4 {[%emt 0:00:49]} 20. Qc2 {[%emt 0:07:30]} Rfc8 {[%emt 0:03:38]} 21. b4 {[%emt 0:03:34]} Qb6 {[%emt 0:01:02]} 1/2-1/2

[Event "CZE-ch Youth G10-G12-G14 2022"]
[Site "Luhacovice"]
[Date "2022.03.14"]
[Round "4.13"]
[White "Stehlikova, Vanessa"]
[Black "Kozusnikova, Daniela"]
[Result "0-1"]
[ECO "C42"]
[WhiteElo "1039"]
[BlackElo "1364"]
[Annotator "NA"]
[PlyCount "98"]
[EventDate "2022.03.12"]
[EventType "swiss"]
[EventCountry "CZE"]
[SourceTitle "playchess.com"]
[Source "ChessBase"]
[SourceQuality "1"]
[TimeControl "40/5400+30:1800+30"]

1. e4 {[%emt 0:00:03]} e5 {[%emt 0:00:10]} 2. Nf3 {[%emt 0:00:11]} Nf6 {[%emt 0:00:20]} 3. Nc3 {[%emt 0:00:11]} Bb4 {[%emt 0:00:13]} 4. d3 {[%emt 0:01:07]} O-O {[%emt 0:00:23]} 5. Be2 {[%emt 0:01:16]} Nc6 {[%emt 0:00:46]} 6. O-O {[%emt 0:02:27]} d6 {[%emt 0:03:05]} 7. Bd2 {[%emt 0:02:56]} Be6 {[%emt 0:03:12]} 8. a3 {[%emt 0:03:10]} Bc5 {[%emt 0:03:22]} 9. Be3 {[%emt 0:01:29]} Bb6 {[%emt 0:01:18]} 10. Nd5 {[%emt 0:00:28]} Nxd5 {[%emt 0:02:02]} 11. exd5 {[%emt 0:00:21]} Bxd5 {[%emt 0:00:51]} 12. c4 {[%emt 0:20:24]} Be6 {[%emt 0:01:55]} 13. d4 {[%emt 0:03:35]} exd4 {[%emt 0:02:10]} 14. Nxd4 {[%emt 0:00:16]} Nxd4 {[%emt 0:00:54]} 15. Bxd4 {[%emt 0:00:13]} Qh4 {[%emt 0:11:18]} 16. Bxb6 {[%emt 0:02:27]} axb6 {[%emt 0:00:48]} 17. b3 {[%emt 0:00:55]} Rfe8 {[%emt 0:02:39]} 18. Bf3 {[%emt 0:03:25]} Rab8 {[%emt 0:09:16]} 19. Re1 {[%emt 0:03:07]} Qg5 {[%emt 0:02:18]} 20. Ra2 {[%emt 0:17:09]} b5 {[%emt 0:02:34]} 21. cxb5 {[%emt 0:06:21]} Qxb5 {[%emt 0:01:43]} 22. Be2 {[%emt 0:06:08]} Qxb3 {[%emt 0:02:32]} 23. Qxb3 {[%emt 0:00:21]} Bxb3 {[%emt 0:00:06]} 24. Raa1 {[%emt 0:00:32]} Ba4 {[%emt 0:09:50]} 25. Rac1 {[%emt 0:00:46]} Bc6 {[%emt 0:01:23]} 26. Rc3 {[%emt 0:02:21]} Re5 {[%emt 0:03:16]} 27. f4 {[%emt 0:00:36]} Re4 {[%emt 0:01:08]} 28. g3 {[%emt 0:01:06]} Rbe8 {[%emt 0:00:41]} 29. Kf2 {[%emt 0:00:30]} g6 {[%emt 0:00:37]} 30. Rcc1 {[%emt 0:00:39]} Kg7 {[%emt 0:01:08]} 31. Bg4 {[%emt 0:01:21]} Rxe1 {[%emt 0:00:23]} 32. Rxe1 {[%emt 0:00:09]} Rxe1 {[%emt 0:00:04]} 33. Kxe1 {[%emt 0:00:04]} f5 {[%emt 0:00:25]} 34. Bd1 {[%emt 0:00:18]} Be4 {[%emt 0:00:22]} 35. Ke2 {[%emt 0:00:48]} Kf6 {[%emt 0:00:25]} 36. Bb3 {[%emt 0:00:20]} d5 {[%emt 0:00:12]} 37. Ke3 {[%emt 0:00:17]} c5 {[%emt 0:00:18]} 38. a4 {[%emt 0:01:03]} b6 {[%emt 0:00:20]} 39. Bd1 {[%emt 0:00:53]} Ke6 {[%emt 0:00:31]} 40. h3 {[%emt 0:01:22]} d4+ {[%emt 0:00:39]} 41. Kf2 {[%emt 0:31:05]} Kd5 {[%emt 0:30:28]} 42. Bb3+ {[%emt 0:00:17]} c4 {[%emt 0:00:10]} 43. Bd1 {[%emt 0:00:39]} Kc5 {[%emt 0:00:21]} 44. g4 {[%emt 0:00:20]} Kb4 {[%emt 0:01:20]} 45. gxf5 {[%emt 0:01:06]} Bxf5 {[%emt 0:00:00]} 46. h4 {[%emt 0:00:15]} Kc3 {[%emt 0:00:28]} 47. Ke2 {[%emt 0:00:38]} Bc2 {[%emt 0:00:14]} 48. Ke1 {[%emt 0:00:54]} Bxd1 {[%emt 0:00:09]} 49. Kxd1 {[%emt 0:00:30]} Kb2 {[%emt 0:00:10]} 0-1

[Event "CZE-ch Youth G10-G12-G14 2022"]
[Site "Luhacovice"]
[Date "2022.03.14"]
[Round "4.14"]
[White "Markina, Sofiia"]
[Black "Kubatova Ema"]
[Result "1-0"]
[ECO "B31"]
[WhiteElo "1367"]
[BlackElo "1183"]
[Annotator "NA"]
[PlyCount "77"]
[EventDate "2022.03.12"]
[EventType "swiss"]
[EventCountry "CZE"]
[SourceTitle "playchess.com"]
[Source "ChessBase"]
[SourceQuality "1"]
[TimeControl "40/5400+30:1800+30"]

1. e4 {[%emt 0:00:04]} c5 {[%emt 0:00:16]} 2. Nf3 {[%emt 0:00:07]} Nc6 {[%emt 0:00:15]} 3. Bb5 {[%emt 0:00:04]} g6 {[%emt 0:00:23]} 4. O-O {[%emt 0:00:08]} Bg7 {[%emt 0:00:15]} 5. c3 {[%emt 0:00:04]} d6 {[%emt 0:00:30]} 6. d4 {[%emt 0:05:40]} cxd4 {[%emt 0:00:31]} 7. cxd4 {[%emt 0:00:06]} Bd7 {[%emt 0:00:38]} 8. Nc3 {[%emt 0:15:37]} Nf6 {[%emt 0:05:08]} 9. Bf4 {[%emt 0:00:40]} O-O {[%emt 0:07:57]} 10. h3 {[%emt 0:13:53]} a6 {[%emt 0:10:26]} 11. Ba4 {[%emt 0:00:22]} b5 {[%emt 0:09:41]} 12. Bb3 {[%emt 0:00:22]} Rc8 {[%emt 0:00:50]} 13. Rc1 {[%emt 0:01:11]} Nh5 {[%emt 0:01:29]} 14. Bh2 {[%emt 0:05:50]} Qb6 {[%emt 0:06:12]} 15. e5 {[%emt 0:05:16]} dxe5 {[%emt 0:03:21]} 16. dxe5 {[%emt 0:01:54]} Rfd8 {[%emt 0:01:03]} 17. Bxf7+ {[%emt 0:14:04]} Kxf7 {[%emt 0:16:57]} 18. Nd5 {[%emt 0:00:15]} Qb7 {[%emt 0:03:05]} 19. e6+ {[%emt 0:00:08]} Bxe6 {[%emt 0:00:51]} 20. Ng5+ {[%emt 0:00:05]} Kg8 {[%emt 0:01:03]} 21. Nxe6 {[%emt 0:00:14]} Bxb2 {[%emt 0:01:03]} 22. Nxd8 {[%emt 0:00:17]} Rxd8 {[%emt 0:00:23]} 23. Rxc6 {[%emt 0:00:18]} Re8 {[%emt 0:01:20]} 24. Rc7 {[%emt 0:00:48]} Qa8 {[%emt 0:00:52]} 25. Nxe7+ {[%emt 0:00:13]} Kf8 {[%emt 0:00:37]} 26. Qd6 {[%emt 0:01:03]} Qd8 {[%emt 0:01:10]} 27. Qe6 {[%emt 0:02:58]} Rxe7 {[%emt 0:00:43]} 28. Rxe7 {[%emt 0:00:06]} Qxe7 {[%emt 0:00:21]} 29. Bd6 {[%emt 0:00:04]} Bf6 {[%emt 0:00:30]} 30. Bxe7+ {[%emt 0:00:14]} Bxe7 {[%emt 0:00:15]} 31. Re1 {[%emt 0:00:15]} Ng7 {[%emt 0:00:26]} 32. Qxe7+ {[%emt 0:00:08]} Kg8 {[%emt 0:00:15]} 33. Qd8+ {[%emt 0:01:06]} Ne8 {[%emt 0:00:18]} 34. Rxe8+ {[%emt 0:00:18]} Kg7 {[%emt 0:00:12]} 35. Qe7+ {[%emt 0:00:08]} Kh6 {[%emt 0:00:13]} 36. Qh4+ {[%emt 0:00:33]} Kg7 {[%emt 0:00:16]} 37. Re7+ {[%emt 0:00:07]} Kf8 {[%emt 0:00:12]} 38. Qf6+ {[%emt 0:00:07]} Kg8 {[%emt 0:00:10]} 39. Qg7# {[%emt 0:00:07]} 1-0

[Event "CZE-ch Youth G10-G12-G14 2022"]
[Site "Luhacovice"]
[Date "2022.03.14"]
[Round "4.15"]
[White "Sochorova Valentyna"]
[Black "Horkova, Tereza"]
[Result "0-1"]
[ECO "B45"]
[WhiteElo "1201"]
[BlackElo "1375"]
[Annotator "NA"]
[PlyCount "116"]
[EventDate "2022.03.12"]
[EventType "swiss"]
[EventCountry "CZE"]
[SourceTitle "playchess.com"]
[Source "ChessBase"]
[SourceQuality "1"]
[TimeControl "40/5400+30:1800+30"]

1. e4 {[%emt 0:00:11]} c5 {[%emt 0:00:05]} 2. Nf3 {[%emt 0:00:09]} e6 {[%emt 0:00:04]} 3. d4 {[%emt 0:00:11]} cxd4 {[%emt 0:00:06]} 4. Nxd4 {[%emt 0:00:14]} Nf6 {[%emt 0:00:06]} 5. Nc3 {[%emt 0:00:17]} Nc6 {[%emt 0:00:11]} 6. Ndb5 {[%emt 0:00:32]} Bb4 {[%emt 0:00:11]} 7. a3 {[%emt 0:00:18]} Bxc3+ {[%emt 0:00:06]} 8. Nxc3 {[%emt 0:00:13]} d5 {[%emt 0:00:15]} 9. Bd3 {[%emt 0:01:52]} O-O {[%emt 0:06:07]} 10. O-O {[%emt 0:03:05]} d4 {[%emt 0:02:02]} 11. Ne2 {[%emt 0:02:00]} Qd6 {[%emt 0:06:25]} 12. Ng3 {[%emt 0:06:17]} e5 {[%emt 0:02:39]} 13. f4 {[%emt 0:06:42]} exf4 {[%emt 0:04:04]} 14. Bxf4 {[%emt 0:06:09]} Qc5 {[%emt 0:02:56]} 15. Nf5 {[%emt 0:04:36]} Bxf5 {[%emt 0:05:51]} 16. exf5 {[%emt 0:01:44]} Ne5 {[%emt 0:07:32]} 17. Bg5 {[%emt 0:15:39]} Neg4 {[%emt 0:09:17]} 18. Qf3 {[%emt 0:07:25]} h6 {[%emt 0:08:49]} 19. Bxf6 {[%emt 0:08:39]} Nxf6 {[%emt 0:00:35]} 20. Qf4 {[%emt 0:04:16]} Rae8 {[%emt 0:07:36]} 21. Kh1 {[%emt 0:08:35]} Nd5 {[%emt 0:09:32]} 22. Qh4 {[%emt 0:04:23]} Re3 {[%emt 0:06:38]} 23. Rae1 {[%emt 0:03:56]} Rfe8 {[%emt 0:06:46]} 24. Rxe3 {[%emt 0:05:49]} Nxe3 {[%emt 0:06:36]} 25. Re1 {[%emt 0:01:15]} Qc6 {[%emt 0:00:50]} 26. Re2 {[%emt 0:01:29]} Kf8 {[%emt 0:04:00]} 27. Qxd4 {[%emt 0:02:18]} Nxc2 {[%emt 0:03:08]} 28. Rxe8+ {[%emt 0:00:27]} Kxe8 {[%emt 0:00:11]} 29. Qe4+ {[%emt 0:03:03]} Qxe4 {[%emt 0:00:12]} 30. Bxe4 {[%emt 0:00:03]} Nd4 {[%emt 0:00:09]} 31. Bxb7 {[%emt 0:00:38]} Nxf5 {[%emt 0:00:05]} 32. b4 {[%emt 0:00:17]} Kd7 {[%emt 0:00:30]} 33. b5 {[%emt 0:00:32]} Kc7 {[%emt 0:01:25]} 34. Be4 {[%emt 0:00:16]} Nd6 {[%emt 0:00:17]} 35. Bd3 {[%emt 0:00:54]} Kb6 {[%emt 0:00:09]} 36. a4 {[%emt 0:00:25]} Ka5 {[%emt 0:00:14]} 37. Bc2 {[%emt 0:00:22]} Nc8 {[%emt 0:00:52]} 38. Bb3 {[%emt 0:03:22]} f6 {[%emt 0:01:05]} 39. g3 {[%emt 0:00:41]} Nb6 {[%emt 0:00:12]} 40. Kg2 {[%emt 0:00:11]} Nxa4 {[%emt 0:00:09]} 41. Kf3 {[%emt 0:30:32]} Nc5 {[%emt 0:30:48]} 42. Bc4 {[%emt 0:00:16]} Kb4 {[%emt 0:00:28]} 43. Bf1 {[%emt 0:00:26]} g6 {[%emt 0:01:10]} 44. Ke3 {[%emt 0:00:30]} Ne6 {[%emt 0:00:47]} 45. Ke4 {[%emt 0:00:29]} Kc5 {[%emt 0:00:39]} 46. h3 {[%emt 0:00:42]} Nc7 {[%emt 0:00:31]} 47. g4 {[%emt 0:01:04]} Nxb5 {[%emt 0:00:17]} 48. Be2 {[%emt 0:00:26]} Nc3+ {[%emt 0:00:10]} 49. Kd3 {[%emt 0:00:21]} Nxe2 {[%emt 0:00:11]} 50. Kxe2 {[%emt 0:00:04]} a5 {[%emt 0:00:03]} 51. Kd2 {[%emt 0:00:15]} Kd4 {[%emt 0:00:32]} 52. Ke2 {[%emt 0:00:45]} a4 {[%emt 0:00:07]} 53. Kd2 {[%emt 0:00:09]} f5 {[%emt 0:00:10]} 54. gxf5 {[%emt 0:00:22]} gxf5 {[%emt 0:00:03]} 55. h4 {[%emt 0:00:15]} a3 {[%emt 0:00:07]} 56. Kc2 {[%emt 0:00:02]} f4 {[%emt 0:00:05]} 57. Kb3 {[%emt 0:00:11]} f3 {[%emt 0:00:04]} 58. Kxa3 {[%emt 0:00:07]} f2 {[%emt 0:00:05]} 0-1

[Event "CZE-ch Youth G10-G12-G14 2022"]
[Site "Luhacovice"]
[Date "2022.03.14"]
[Round "4.16"]
[White "Stavova, Lucie"]
[Black "Kammova, Katerina"]
[Result "0-1"]
[ECO "C00"]
[WhiteElo "1048"]
[BlackElo "1376"]
[Annotator "NA"]
[PlyCount "98"]
[EventDate "2022.03.12"]
[EventType "swiss"]
[EventCountry "CZE"]
[SourceTitle "playchess.com"]
[Source "ChessBase"]
[SourceQuality "1"]
[TimeControl "40/5400+30:1800+30"]

1. e4 {[%emt 0:00:08]} e6 {[%emt 0:00:10]} 2. d3 {[%emt 0:00:19]} d5 {[%emt 0:00:08]} 3. Nd2 {[%emt 0:00:24]} Nf6 {[%emt 0:00:24]} 4. Ngf3 {[%emt 0:00:26]} Be7 {[%emt 0:00:32]} 5. g3 {[%emt 0:00:36]} O-O {[%emt 0:00:44]} 6. Bg2 {[%emt 0:01:03]} c5 {[%emt 0:00:35]} 7. O-O {[%emt 0:01:34]} Nc6 {[%emt 0:00:21]} 8. Re1 {[%emt 0:00:47]} Rb8 {[%emt 0:02:37]} 9. Qe2 {[%emt 0:02:29]} Qc7 {[%emt 0:02:34]} 10. Nf1 {[%emt 0:04:20]} b5 {[%emt 0:01:42]} 11. c3 {[%emt 0:01:18]} h6 {[%emt 0:02:22]} 12. h4 {[%emt 0:02:41]} Rd8 {[%emt 0:05:01]} 13. e5 {[%emt 0:07:22]} Nd7 {[%emt 0:01:40]} 14. Bf4 {[%emt 0:02:47]} c4 {[%emt 0:03:01]} 15. d4 {[%emt 0:01:45]} b4 {[%emt 0:02:16]} 16. a3 {[%emt 0:05:32]} bxa3 {[%emt 0:01:32]} 17. bxa3 {[%emt 0:01:50]} Na5 {[%emt 0:00:37]} 18. N1h2 {[%emt 0:06:54]} Nb3 {[%emt 0:02:18]} 19. Ra2 {[%emt 0:02:15]} Qa5 {[%emt 0:03:42]} 20. Qe3 {[%emt 0:07:05]} Bf8 {[%emt 0:02:30]} 21. g4 {[%emt 0:01:59]} Rb7 {[%emt 0:04:00]} 22. h5 {[%emt 0:02:23]} Qc7 {[%emt 0:01:03]} 23. g5 {[%emt 0:01:05]} hxg5 {[%emt 0:01:57]} 24. Bxg5 {[%emt 0:02:41]} f6 {[%emt 0:03:44]} 25. exf6 {[%emt 0:02:13]} Nxf6 {[%emt 0:00:30]} 26. h6 {[%emt 0:05:03]} Re8 {[%emt 0:01:27]} 27. Bxf6 {[%emt 0:01:45]} gxf6 {[%emt 0:01:43]} 28. Ng4 {[%emt 0:04:05]} Be7 {[%emt 0:06:25]} 29. h7+ {[%emt 0:07:54]} Kh8 {[%emt 0:00:42]} 30. Nh4 {[%emt 0:03:00]} Bf8 {[%emt 0:03:03]} 31. Ng6+ {[%emt 0:01:12]} Kxh7 {[%emt 0:00:50]} 32. Nxf8+ {[%emt 0:02:20]} Rxf8 {[%emt 0:00:12]} 33. Qh3+ {[%emt 0:02:01]} Kg7 {[%emt 0:03:05]} 34. f3 {[%emt 0:02:11]} Kf7 {[%emt 0:01:29]} 35. Qh5+ {[%emt 0:03:17]} Ke7 {[%emt 0:00:59]} 36. Nh6 {[%emt 0:01:58]} Kd8 {[%emt 0:01:08]} 37. Kf2 {[%emt 0:03:21]} Qf4 {[%emt 0:03:38]} 38. Rb2 {[%emt 0:04:05]} Qg5 {[%emt 0:03:56]} 39. Qh2 {[%emt 0:01:27]} Rh7 {[%emt 0:02:17]} 40. Qd6+ {[%emt 0:02:01]} Ke8 {[%emt 0:02:06]} 41. Rxe6+ {[%emt 0:31:13]} Bxe6 {[%emt 0:31:20]} 42. Qxe6+ {[%emt 0:00:27]} Kd8 {[%emt 0:01:30]} 43. Qd6+ {[%emt 0:00:27]} Kc8 {[%emt 0:02:43]} 44. Qxf8+ {[%emt 0:00:15]} Kc7 {[%emt 0:01:30]} 45. Nf7 {[%emt 0:01:14]} Qh4+ {[%emt 0:03:08]} 46. Ke3 {[%emt 0:00:45]} Qe1+ {[%emt 0:02:08]} 47. Re2 {[%emt 0:00:34]} Qxc3+ {[%emt 0:01:10]} 48. Kf2 {[%emt 0:00:48]} Qxd4+ {[%emt 0:01:04]} 49. Kg3 {[%emt 0:00:23]} Qh4# {[%emt 0:00:39]} 0-1

[Event "CZE-ch Youth G10-G12-G14 2022"]
[Site "Luhacovice"]
[Date "2022.03.14"]
[Round "4.17"]
[White "Stara, Zuzana"]
[Black "Pruskova, Justyna"]
[Result "1-0"]
[ECO "C48"]
[WhiteElo "1322"]
[BlackElo "1003"]
[Annotator "NA"]
[PlyCount "49"]
[EventDate "2022.03.12"]
[EventType "swiss"]
[EventCountry "CZE"]
[SourceTitle "playchess.com"]
[Source "ChessBase"]
[SourceQuality "1"]
[TimeControl "40/5400+30:1800+30"]

1. e4 {[%emt 0:00:03]} e5 {[%emt 0:00:07]} 2. Nf3 {[%emt 0:00:13]} Nc6 {[%emt 0:00:05]} 3. Bb5 {[%emt 0:00:07]} Nf6 {[%emt 0:00:30]} 4. O-O {[%emt 0:00:10]} Bc5 {[%emt 0:00:51]} 5. d3 {[%emt 0:01:48]} d6 {[%emt 0:00:35]} 6. Nc3 {[%emt 0:02:10]} O-O {[%emt 0:00:33]} 7. h3 {[%emt 0:02:00]} h6 {[%emt 0:01:18]} 8. Bg5 {[%emt 0:00:36]} Re8 {[%emt 0:02:44]} 9. Bh4 {[%emt 0:00:27]} Be6 {[%emt 0:00:30]} 10. Ba4 {[%emt 0:02:18]} Bb4 {[%emt 0:10:18]} 11. Nd5 {[%emt 0:01:29]} Bc5 {[%emt 0:03:49]} 12. Bxf6 {[%emt 0:43:50]} gxf6 {[%emt 0:37:10]} 13. Nh4 {[%emt 0:00:30]} Kh7 {[%emt 0:00:30]} 14. Qf3 {[%emt 0:00:30]} Bxd5 {[%emt 0:00:30]} 15. exd5 {[%emt 0:00:30]} Nd4 {[%emt 0:00:30]} 16. Qe4+ {[%emt 0:00:30]} f5 {[%emt 0:00:30]} 17. Nxf5 {[%emt 0:00:30]} Rf8 {[%emt 0:00:30]} 18. Nxd4+ {[%emt 0:00:30]} Kh8 {[%emt 0:00:30]} 19. Nf3 {[%emt 0:00:30]} f5 {[%emt 0:00:30]} 20. Qh4 {[%emt 0:00:30]} Rf6 {[%emt 0:00:30]} 21. Ng5 {[%emt 0:00:30]} Kg8 {[%emt 0:00:30]} 22. Ne6 {[%emt 0:00:30]} Qe7 {[%emt 0:00:30]} 23. Nxc7 {[%emt 0:00:30]} Rc8 {[%emt 0:00:30]} 24. Ne8 {[%emt 0:00:30]} a6 {[%emt 0:00:30]} 25. Qxf6 {[%emt 0:02:09]} 1-0